bitfinex/quotes_SOLUSD_20220207
["timestamp","ask_amount","ask_price","bid_price","bid_amount"]
[1644264487456,46.93553314,120.83,120.72,5.30730217]
[1644264487655,2.14682857,120.82,120.71,1.16830217]
[1644264487853,4.14,120.81,120.7,20.71858796]
[1644264488054,4.14,120.81,120.68,1.16830217]
[1644264488254,12.4298,120.78,120.68,1.16830217]
[1644264488452,55.60830564,120.77,120.68,37.05011076]
[1644264488675,63.75513421,120.77,120.68,37.05011076]
[1644264488876,64.00513421,120.77,120.68,37.07411076]
[1644264489078,55.85830564,120.77,120.68,37.07411076]
[1644264490082,55.85830564,120.77,120.68,37.32411076]
[1644264490279,43.88830564,120.77,120.68,37.32411076]
[1644264490478,43.88830564,120.77,120.68,36.82411076]
[1644264490783,43.88830564,120.77,120.68,36.80011076]
[1644264490978,0.25,120.77,120.68,42.80011076]
[1644264491177,12.4253,120.8,120.68,44.94230138]
[1644264491378,4.141,120.81,120.69,4.141]
[1644264491379,11.97,120.81,120.69,4.141]
[1644264491579,76.1331,120.82,120.7,1.16830217]
[1644264491778,76.1331,120.82,120.71,4.14]
[1644264491978,47.8149693,120.81,120.71,33.14178261]
[1644264492180,60.2389693,120.81,120.71,6.25]
[1644264492381,78.2089693,120.81,120.68,4.164]
[1644264492581,6.28682857,120.8,120.68,0.024]
[1644264492782,11.97,120.79,120.68,0.024]
[1644264492979,14.11682857,120.79,120.67,0.024]
[1644264493180,37.97332221,120.78,120.67,0.024]
[1644264493380,11.97,120.77,120.67,0.024]
[1644264493588,11.97,120.77,120.66,0.024]
[1644264493589,20.11682857,120.77,120.66,0.024]
[1644264493780,6.28882857,120.76,120.66,0.024]
[1644264493982,11.97,120.75,120.64,0.024]
[1644264494182,95.142,120.74,120.6,4.142]
[1644264494383,0.30592171,120.72,120.56,34.80035881]
[1644264494583,41.4643,120.7,120.58,1.17112473]
[1644264494783,41.4643,120.7,120.56,1.17112473]
[1644264494784,0.32275201,120.68,120.56,1.17112473]
[1644264494984,0.32275201,120.68,120.55,1.17112473]
[1644264494985,11.97,120.67,120.55,1.17112473]
[1644264495183,4.144,120.66,120.54,1.17112473]
[1644264495386,12.4436,120.64,120.52,4.144]
[1644264495591,11.97,120.63,120.52,4.144]
[1644264495784,39.18317967,120.62,120.5,38.49596163]
[1644264495982,47.00717967,120.62,120.5,38.49596163]
[1644264496185,53.25717967,120.62,120.51,15.38167958]
[1644264496585,53.25717967,120.62,120.51,15.63167958]
[1644264496882,65.70247967,120.62,120.51,17.7498702]
[1644264497083,47.25717967,120.62,120.52,15.38167958]
[1644264497286,47.25717967,120.62,120.53,40.85292981]
[1644264497583,12.22,120.62,120.53,40.85292981]
[1644264497783,11.97,120.65,120.53,55.35879901]
[1644264497986,11.97,120.65,120.53,73.89034369]
[1644264498183,12.22,120.65,120.54,19.45853966]
[1644264498385,18.22,120.65,120.54,15.31253966]
[1644264498585,34.49561633,120.64,120.55,28.83896356]
[1644264498786,34.74561633,120.64,120.55,28.83896356]
[1644264498985,40.74561633,120.64,120.5,27.39699393]
[1644264499185,40.74561633,120.64,120.51,4.146]
[1644264499387,40.74561633,120.64,120.51,19.44195455]
[1644264499587,40.74561633,120.64,120.52,2.12365603]
[1644264499787,46.59696633,120.64,120.53,4.146]
[1644264499987,40.59696633,120.64,120.54,40.51474544]
[1644264500187,46.59696633,120.64,120.54,40.51474544]
[1644264500986,46.59696633,120.64,120.54,48.63840147]
[1644264501187,6.10135,120.64,120.54,48.63840147]
[1644264501389,6.10135,120.64,120.54,48.88840147]
[1644264501788,6.10135,120.64,120.54,61.02608005]
[1644264502605,6.10135,120.64,120.55,12.4358]
[1644264502799,6.10135,120.64,120.55,22.6458]
[1644264503094,6.10135,120.64,120.56,6.26965603]
[1644264503292,6.10135,120.64,120.56,6.51965603]
[1644264503492,6.10135,120.64,120.56,12.51965603]
[1644264503691,6.10135,120.64,120.57,29.17714793]
[1644264503890,47.4703101,120.63,120.57,29.17714793]
[1644264504092,6.10135,120.62,120.57,6.25]
[1644264504391,6.10135,120.62,120.57,0.25]
[1644264504792,6.10135,120.62,120.54,4.146]
[1644264504994,6.10135,120.62,120.54,10.146]
[1644264505192,6.10135,120.62,120.55,47.82366738]
[1644264505600,35.17525325,120.61,120.55,53.82366738]
[1644264505793,6.10135,120.6,120.55,53.82366738]
[1644264506198,6.10135,120.6,120.55,54.07366738]
[1644264507206,6.10135,120.6,120.55,6.25]
[1644264507395,6.10135,120.6,120.55,0.25]
[1644264507601,6.35135,120.6,120.55,0.25]
[1644264507800,6.35135,120.6,120.53,6.0]
[1644264507801,6.35135,120.6,120.53,6.25]
[1644264508000,6.35135,120.6,120.53,0.25]
[1644264508299,48.22637878,120.59,120.53,6.0]
[1644264508495,6.10135,120.58,120.53,6.0]
[1644264508698,6.10135,120.58,120.53,0.25]
[1644264509806,6.10135,120.58,120.53,2.12953785]
[1644264509998,24.1217,120.66,120.53,12.08953785]
[1644264510203,0.25,120.66,120.54,12.13767858]
[1644264510407,0.25,120.66,120.55,9.96]
[1644264510601,0.25,120.66,120.56,0.024]
[1644264510809,39.68196964,120.69,120.56,9.984]
[1644264511001,39.68196964,120.69,120.57,0.024]
[1644264511201,39.68196964,120.69,120.58,9.96]
[1644264511401,39.68196964,120.69,120.59,30.511914]
[1644264511602,39.68196964,120.69,120.59,36.011914]
[1644264511802,39.68196964,120.69,120.59,36.261914]
[1644264512301,39.93196964,120.69,120.59,36.261914]
[1644264512503,45.68196964,120.69,120.59,36.261914]
[1644264512700,39.68196964,120.69,120.59,36.261914]
[1644264513309,45.78331964,120.69,120.59,36.261914]
[1644264515704,46.03331964,120.69,120.59,36.261914]
[1644264516009,46.03331964,120.69,120.59,36.011914]
[1644264516207,52.03331964,120.69,120.59,36.011914]
[1644264517310,52.03331964,120.69,120.59,36.261914]
[1644264517311,6.10135,120.69,120.59,36.261914]
[1644264517511,4.144,120.71,120.6,9.96]
[1644264517709,22.7569,120.72,120.6,17.38112473]
[1644264517910,22.7569,120.72,120.6,19.50447493]
[1644264518210,40.66829733,120.71,120.61,40.3751041]
[1644264518411,40.66829733,120.71,120.61,44.5181041]
[1644264518613,40.66829733,120.71,120.61,50.7681041]
[1644264519911,40.66829733,120.71,120.61,46.6251041]
[1644264520111,22.7569,120.72,120.62,12.4289]
[1644264520312,23.0069,120.72,120.62,23.81002473]
[1644264520511,23.0069,120.72,120.62,29.81002473]
[1644264520811,22.7569,120.72,120.62,29.81002473]
[1644264521012,37.69322912,120.75,120.63,30.011914]
[1644264521217,48.63786537,120.73,120.63,36.261914]
[1644264521613,48.63786537,120.73,120.63,6.0]
[1644264521913,48.63786537,120.73,120.61,1.17112473]
[1644264522112,62.74086537,120.73,120.61,6.0]
[1644264522334,68.99086537,120.73,120.61,7.17112473]
[1644264522538,68.99086537,120.73,120.62,40.91900531]
[1644264522738,64.84786537,120.73,120.62,40.91900531]
[1644264523139,64.84786537,120.73,120.62,41.16900531]
[1644264523337,64.84786537,120.73,120.62,40.91900531]
[1644264523535,64.84786537,120.73,120.62,42.09013004]
[1644264524737,64.84786537,120.73,120.62,42.34013004]
[1644264524942,48.63786537,120.73,120.63,1.17112473]
[1644264525141,48.63786537,120.73,120.64,28.29688806]
[1644264525338,48.63786537,120.73,120.64,29.71801279]
[1644264525740,48.63786537,120.73,120.64,1.42112473]
[1644264525939,54.63786537,120.73,120.64,1.42112473]
[1644264526139,54.63786537,120.73,120.64,0.25]
[1644264526341,54.88786537,120.73,120.64,0.25]
[1644264526539,54.88786537,120.73,120.63,1.42112473]
[1644264526740,54.88786537,120.73,120.62,1.17112473]
[1644264527040,66.99469394,120.73,120.62,1.17112473]
[1644264527239,43.23684639,120.71,120.62,1.17112473]
[1644264527643,49.48684639,120.71,120.62,1.19512473]
[1644264527939,43.48684639,120.71,120.62,7.19512473]
[1644264528141,43.48684639,120.71,120.62,1.44512473]
[1644264528340,43.48684639,120.71,120.62,1.42112473]
[1644264528742,49.48684639,120.71,120.62,1.42112473]
[1644264529043,49.48684639,120.71,120.62,31.63435122]
[1644264529441,43.48684639,120.71,120.62,31.63435122]
[1644264530543,43.23684639,120.71,120.62,31.63435122]
[1644264530943,43.23684639,120.71,120.63,1.17112473]
[1644264531145,43.23684639,120.71,120.63,7.19512473]
[1644264531445,43.23684639,120.71,120.63,7.44512473]
[1644264531647,43.23684639,120.71,120.63,7.19512473]
[1644264532044,43.23684639,120.71,120.63,1.19512473]
[1644264532244,43.48684639,120.71,120.63,1.19512473]
[1644264532444,43.48684639,120.71,120.63,7.19512473]
[1644264532844,43.48684639,120.71,120.63,1.19512473]
[1644264533145,43.48684639,120.71,120.63,1.44512473]
[1644264533344,49.48684639,120.71,120.63,7.19512473]
[1644264533644,49.48684639,120.71,120.63,0.024]
[1644264533844,49.48684639,120.71,120.62,1.17112473]
[1644264534247,70.65164639,120.71,120.62,1.17112473]
[1644264535648,70.65164639,120.71,120.62,1.42112473]
[1644264535847,61.67164639,120.71,120.62,1.42112473]
[1644264536047,61.67164639,120.71,120.62,0.25]
[1644264536248,61.67164639,120.71,120.62,1.44512473]
[1644264536455,61.67164639,120.71,120.62,1.42112473]
[1644264536850,61.67164639,120.71,120.62,0.25]
[1644264537055,61.67164639,120.71,120.62,1.44512473]
[1644264537248,61.92164639,120.71,120.62,1.44512473]
[1644264537748,61.92164639,120.71,120.62,1.42112473]
[1644264537947,61.92164639,120.71,120.62,0.25]
[1644264538148,61.92164639,120.71,120.62,0.274]
[1644264538348,61.92164639,120.71,120.62,0.024]
[1644264538547,61.92164639,120.71,120.62,1.19512473]
[1644264538749,61.92164639,120.71,120.62,1.42112473]
[1644264541051,61.92164639,120.71,120.62,1.17112473]
[1644264541250,61.67164639,120.71,120.63,1.17112473]
[1644264541453,43.23684639,120.71,120.63,1.19512473]
[1644264541656,43.23684639,120.71,120.64,1.17112473]
[1644264541854,43.23684639,120.71,120.64,1.19512473]
[1644264542051,43.23684639,120.71,120.64,0.274]
[1644264542256,43.23684639,120.71,120.64,1.44512473]
[1644264542458,43.23684639,120.71,120.64,1.42112473]
[1644264542659,43.48684639,120.71,120.64,7.42112473]
[1644264543257,43.48684639,120.71,120.64,7.17112473]
[1644264543459,43.48684639,120.71,120.64,6.0]
[1644264543655,49.48684639,120.71,120.64,0.274]
[1644264544656,43.48684639,120.71,120.64,0.274]
[1644264544855,43.48684639,120.71,120.64,0.024]
[1644264545058,43.48684639,120.71,120.63,7.42112473]
[1644264545557,43.23684639,120.71,120.63,1.42112473]
[1644264545956,43.23684639,120.71,120.63,7.42112473]
[1644264546157,49.23684639,120.71,120.63,37.44185054]
[1644264546355,43.23684639,120.71,120.63,37.44185054]
[1644264546556,43.23684639,120.71,120.64,1.17112473]
[1644264546757,43.23684639,120.71,120.64,1.44512473]
[1644264547060,43.23684639,120.71,120.64,7.44512473]
[1644264547258,43.48684639,120.71,120.64,7.44512473]
[1644264547659,43.48684639,120.71,120.64,7.42112473]
[1644264548360,43.48684639,120.71,120.64,1.42112473]
[1644264548558,43.48684639,120.71,120.64,7.42112473]
[1644264548761,43.48684639,120.71,120.64,1.42112473]
[1644264549160,43.23684639,120.71,120.64,22.48092697]
[1644264549565,43.23684639,120.71,120.64,29.6520517]
[1644264549961,24.5744,120.74,120.64,42.0805517]
[1644264550162,24.5744,120.74,120.64,52.0405517]
[1644264550364,24.5744,120.74,120.66,1.17112473]
[1644264550562,24.2721,120.77,120.67,1.17112473]
[1644264550762,24.2721,120.77,120.67,1.42112473]
[1644264550963,43.83113436,120.76,120.68,41.98691475]
[1644264551265,43.83113436,120.76,120.68,48.23691475]
[1644264553364,43.83113436,120.76,120.68,6.25]
[1644264553665,43.83113436,120.76,120.68,0.25]
[1644264553863,43.83113436,120.76,120.68,18.6745]
[1644264554064,43.83113436,120.76,120.68,18.4245]
[1644264554263,43.83113436,120.76,120.69,46.06271885]
[1644264554668,43.83113436,120.76,120.69,52.31271885]
[1644264555163,43.83113436,120.76,120.69,6.25]
[1644264555365,43.83113436,120.76,120.69,6.0]
[1644264555571,43.83113436,120.76,120.68,18.4245]
[1644264555767,44.08113436,120.76,120.68,18.4245]
[1644264556366,44.08113436,120.76,120.68,45.41018148]
[1644264556566,24.06359602,120.8,120.69,2.12895558]
[1644264556769,1.18079602,120.81,120.71,12.4211]
[1644264556968,22.5346,120.82,120.72,9.96]
[1644264557170,22.5346,120.82,120.72,15.96]
[1644264557375,22.5346,120.82,120.72,16.21]
[1644264557566,47.86760913,120.81,120.73,42.23021189]
[1644264557767,47.86760913,120.81,120.73,42.48021189]
[1644264557967,47.86760913,120.81,120.73,48.48021189]
[1644264558669,47.86760913,120.81,120.73,6.25]
[1644264558970,47.86760913,120.81,120.74,12.4189]
[1644264559369,47.86760913,120.81,120.72,9.96]
[1644264559873,48.11760913,120.81,120.72,9.96]
[1644264560070,48.11760913,120.81,120.72,15.96]
[1644264560270,48.11760913,120.81,120.72,9.96]
[1644264560468,48.11760913,120.81,120.72,15.96]
[1644264560872,54.11760913,120.81,120.72,6.0]
[1644264561070,54.11760913,120.81,120.69,10.14]
[1644264561269,4.14,120.8,120.69,4.14]
[1644264561472,36.90892703,120.79,120.69,10.14]
[1644264561670,42.90892703,120.79,120.69,10.14]
[1644264561870,43.15892703,120.79,120.69,4.14]
[1644264562673,43.15892703,120.79,120.66,43.02244923]
[1644264563073,55.58442703,120.79,120.68,12.4243]
[1644264563274,55.58442703,120.79,120.68,43.92986887]
[1644264563474,55.58442703,120.79,120.68,49.92986887]
[1644264563697,55.58442703,120.79,120.68,50.17986887]
[1644264563893,55.58442703,120.79,120.68,18.6743]
[1644264565100,55.58442703,120.79,120.68,6.25]
[1644264565298,55.58442703,120.79,120.68,0.25]
[1644264565495,55.58442703,120.79,120.67,6.25]
[1644264565899,67.51442703,120.79,120.67,6.25]
[1644264566296,67.51442703,120.79,120.67,0.25]
[1644264566496,67.51442703,120.79,120.66,35.54659227]
[1644264566696,4.141,120.78,120.66,6.0]
[1644264566901,12.4287,120.75,120.66,6.0]
[1644264567097,12.4287,120.75,120.65,29.5113]
[1644264567296,12.6787,120.75,120.65,29.5113]
[1644264567498,12.6787,120.75,120.65,6.0]
[1644264567702,12.6787,120.75,120.64,32.87756385]
[1644264567897,48.80801797,120.74,120.65,12.4284]
[1644264568098,48.80801797,120.74,120.65,18.4284]
[1644264568297,49.05801797,120.74,120.65,6.25]
[1644264568498,49.05801797,120.74,120.65,0.25]
[1644264568499,55.05801797,120.74,120.65,0.25]
[1644264568699,55.05801797,120.74,120.64,1.44512473]
[1644264569000,49.05801797,120.74,120.64,0.024]
[1644264569200,49.05801797,120.74,120.64,12.7035]
[1644264569399,49.05801797,120.74,120.64,13.87462473]
[1644264569800,49.05801797,120.74,120.64,19.87462473]
[1644264570503,49.05801797,120.74,120.64,18.7035]
[1644264570700,49.05801797,120.74,120.64,19.87462473]
[1644264572402,49.05801797,120.74,120.65,28.39612487]
[1644264572604,49.05801797,120.74,120.65,34.39612487]
[1644264572804,49.05801797,120.74,120.65,6.25]
[1644264573504,49.05801797,120.74,120.65,7.42112473]
[1644264573704,49.05801797,120.74,120.65,19.84982473]
[1644264573907,49.05801797,120.74,120.65,63.20703595]
[1644264575507,0.25,120.74,120.65,65.33599153]
[1644264575704,24.9707,120.76,120.66,11.93]
[1644264575705,37.3975,120.76,120.66,11.93]
[1644264575904,4.142,120.8,120.68,12.425]
[1644264576111,6.10135,120.79,120.68,31.52612473]
[1644264576307,6.10135,120.79,120.69,3.30008031]
[1644264576604,6.10135,120.79,120.7,27.98763773]
[1644264576605,37.97960522,120.78,120.7,27.98763773]
[1644264576805,37.97960522,120.78,120.7,28.23763773]
[1644264577006,38.22960522,120.78,120.7,32.10868215]
[1644264578010,38.22960522,120.78,120.7,44.53138215]
[1644264578206,38.22960522,120.78,120.7,18.6727]
[1644264578408,43.86290522,120.82,120.7,18.6727]
[1644264578607,54.00290522,120.82,120.7,18.6727]
[1644264579007,12.423,120.79,120.7,18.6727]
[1644264579207,48.49959028,120.78,120.71,34.78064342]
[1644264579610,48.49959028,120.78,120.71,35.03064342]
[1644264580208,48.74959028,120.78,120.71,53.45334342]
[1644264580909,48.74959028,120.78,120.71,6.25]
[1644264581111,61.17349028,120.78,120.71,0.25]
[1644264581307,61.17349028,120.78,120.68,3.30008031]
[1644264581510,67.17349028,120.78,120.68,2.12895558]
[1644264581713,67.17349028,120.78,120.67,5.31112473]
[1644264581910,67.17349028,120.78,120.67,54.98400644]
[1644264582309,83.24449028,120.78,120.67,53.81288171]
[1644264583212,83.24449028,120.78,120.67,55.23400644]
[1644264583409,79.10349028,120.78,120.67,49.23400644]
[1644264583609,79.10349028,120.78,120.67,48.06288171]
[1644264584609,79.10349028,120.78,120.67,54.06288171]
[1644264584809,79.10349028,120.78,120.67,53.56288171]
[1644264585511,79.10349028,120.78,120.67,54.73400644]
[1644264585713,79.10349028,120.78,120.67,53.56288171]
[1644264586412,73.10349028,120.78,120.67,65.98958171]
[1644264586612,61.17349028,120.78,120.67,65.98958171]
[1644264587213,60.92349028,120.78,120.67,67.16070644]
[1644264587613,60.92349028,120.78,120.68,1.17112473]
[1644264587814,60.92349028,120.78,120.69,54.46126115]
[1644264588217,60.92349028,120.78,120.69,60.71126115]
[1644264588815,61.17349028,120.78,120.69,60.71126115]
[1644264589016,12.4239,120.78,120.69,60.71126115]
[1644264589416,37.3184,120.8,120.7,2.12895558]
[1644264589618,24.8959,120.8,120.73,12.4204]
[1644264589817,24.8959,120.8,120.73,12.6704]
[1644264590017,24.8959,120.8,120.74,38.11346586]
[1644264590218,24.8959,120.8,120.74,38.36346586]
[1644264590619,24.8959,120.8,120.74,44.36346586]
[1644264591216,63.09370764,120.8,120.74,44.36346586]
[1644264592017,63.09370764,120.8,120.74,56.78286586]
[1644264592217,63.34370764,120.8,120.74,38.36346586]
[1644264592418,63.34370764,120.8,120.74,0.25]
[1644264592718,63.34370764,120.8,120.71,22.32]
[1644264593419,63.34370764,120.8,120.72,48.14792694]
[1644264593618,38.44780764,120.8,120.72,54.14792694]
[1644264593819,38.44780764,120.8,120.72,54.39792694]
[1644264594018,50.86960764,120.8,120.72,66.81892694]
[1644264594519,50.86960764,120.8,120.72,18.671]
[1644264594719,50.86960764,120.8,120.72,6.0]
[1644264594919,56.86960764,120.8,120.7,47.0039]
[1644264595120,56.86960764,120.8,120.7,47.2539]
[1644264595319,56.86960764,120.8,120.7,0.25]
[1644264596320,56.86960764,120.8,120.68,13.59632473]
[1644264596522,56.86960764,120.8,120.68,1.17112473]
[1644264596720,11.93,120.79,120.68,7.17112473]
[1644264596920,12.4274,120.76,120.67,19.59822473]
[1644264597120,43.71541076,120.75,120.67,66.05144503]
[1644264597421,43.71541076,120.75,120.67,19.59822473]
[1644264597620,43.71541076,120.75,120.67,18.4271]
[1644264599023,56.14311076,120.75,120.67,6.0]
[1644264599224,56.14311076,120.75,120.68,40.39150665]
[1644264599626,56.14311076,120.75,120.68,46.39150665]
[1644264600225,56.14311076,120.75,120.68,6.0]
[1644264600427,56.14311076,120.75,120.66,1.17112473]
[1644264600627,62.14311076,120.75,120.66,7.17112473]
[1644264600833,62.14311076,120.75,120.66,1.17112473]
[1644264601029,62.14311076,120.75,120.66,7.17112473]
[1644264601230,62.14311076,120.75,120.66,45.16554903]
[1644264601428,62.14311076,120.75,120.66,43.9944243]
[1644264601827,62.14311076,120.75,120.66,45.16554903]
[1644264602525,62.14311076,120.75,120.66,43.9944243]
[1644264602728,62.14311076,120.75,120.66,45.16554903]
[1644264602926,62.14311076,120.75,120.66,6.0]
[1644264603129,62.14311076,120.75,120.65,7.17112473]
[1644264603326,62.14311076,120.75,120.65,1.17112473]
[1644264603525,62.14311076,120.75,120.65,7.17112473]
[1644264603928,62.14311076,120.75,120.66,37.32906772]
[1644264604126,62.14311076,120.75,120.66,43.32906772]
[1644264605428,62.14311076,120.75,120.66,6.0]
[1644264605628,62.14311076,120.75,120.65,9.30008031]
[1644264605830,62.14311076,120.75,120.65,2.12895558]
[1644264606031,62.14311076,120.75,120.64,1.17112473]
[1644264606234,2.14682857,120.74,120.64,1.19512473]
[1644264606436,12.4342,120.71,120.64,1.17112473]
[1644264606730,35.79374358,120.7,120.63,0.024]
[1644264606932,35.79374358,120.7,120.62,45.32391072]
[1644264607132,41.79374358,120.7,120.62,45.32391072]
[1644264607633,11.93,120.72,120.62,45.32391072]
[1644264607833,11.93,120.72,120.62,51.34791072]
[1644264608230,11.93,120.72,120.63,1.17112473]
[1644264608432,11.93,120.72,120.63,16.0940393]
[1644264608630,12.4319,120.7,120.63,14.92291457]
[1644264608833,46.07234357,120.69,120.63,1.17112473]
[1644264609030,46.07234357,120.69,120.62,11.31312473]
[1644264609230,46.07234357,120.69,120.62,6.0]
[1644264609435,52.07234357,120.69,120.62,6.0]
[1644264609730,52.07234357,120.69,120.61,7.19512473]
[1644264609931,52.07234357,120.69,120.61,35.76443916]
[1644264610132,52.07234357,120.69,120.61,6.024]
[1644264610331,64.50544357,120.69,120.61,0.024]
[1644264610534,2.14682857,120.68,120.61,0.024]
[1644264610732,2.14682857,120.68,120.58,1.19512473]
[1644264610934,25.39432857,120.68,120.59,0.024]
[1644264611131,39.55608172,120.67,120.59,47.7897854]
[1644264611336,12.4383,120.66,120.59,0.024]
[1644264611533,12.4383,120.66,120.58,1.19512473]
[1644264611736,18.4383,120.66,120.58,1.19512473]
[1644264611934,18.4383,120.66,120.58,0.024]
[1644264612133,18.4383,120.66,120.57,1.17112473]
[1644264612357,48.48705108,120.65,120.58,45.50381981]
[1644264612535,12.4392,120.64,120.57,1.19512473]
[1644264612734,12.4392,120.64,120.57,1.17112473]
[1644264612934,18.4392,120.64,120.57,1.17112473]
[1644264613134,12.4392,120.64,120.57,1.17112473]
[1644264613536,44.21101331,120.63,120.56,1.17112473]
[1644264613738,56.65081331,120.63,120.56,1.17112473]
[1644264613941,56.65081331,120.63,120.56,7.17112473]
[1644264614138,56.65081331,120.63,120.56,6.0]
[1644264614339,56.65081331,120.63,120.57,40.23846905]
[1644264614540,64.3711,120.66,120.57,40.23846905]
[1644264614742,22.9041,120.66,120.57,46.26246905]
[1644264614938,41.4581,120.68,120.57,47.43359378]
[1644264615138,47.4581,120.68,120.58,0.024]
[1644264615539,36.47463784,120.67,120.58,0.024]
[1644264617039,12.4371,120.66,120.58,12.46]
[1644264617240,47.99829822,120.65,120.58,12.46]
[1644264617439,47.99829822,120.65,120.58,6.024]
[1644264617640,47.99829822,120.65,120.58,0.024]
[1644264617840,47.99829822,120.65,120.57,40.23846905]
[1644264618240,47.99829822,120.65,120.57,46.23846905]
[1644264618639,47.99829822,120.65,120.57,40.23846905]
[1644264619043,60.43589822,120.65,120.57,40.23846905]
[1644264620742,60.43589822,120.65,120.57,52.67556905]
[1644264620942,60.43589822,120.65,120.57,58.67556905]
[1644264622142,47.99829822,120.65,120.57,60.80452463]
[1644264622543,47.99829822,120.65,120.57,73.90564936]
[1644264623143,12.4362,120.67,120.57,73.90564936]
[1644264623342,12.434,120.69,120.57,86.6195416]
[1644264623543,12.434,120.69,120.61,12.4327]
[1644264623946,12.434,120.69,120.61,18.4327]
[1644264624247,37.66872247,120.68,120.61,57.50233588]
[1644264626847,12.6821,120.7,120.61,69.43233588]
[1644264627043,22.7768,120.73,120.61,71.58529146]
[1644264627244,22.7768,120.73,120.65,12.4281]
[1644264627464,22.3068,120.73,120.65,12.4281]
[1644264627666,24.0746,120.75,120.65,18.4281]
[1644264627863,51.60578162,120.74,120.66,35.64019607]
[1644264628065,51.60578162,120.74,120.66,41.64019607]
[1644264629066,51.60578162,120.74,120.66,54.06789607]
[1644264629769,57.60578162,120.74,120.64,24.8247]
[1644264629968,57.60578162,120.74,120.63,13.10112473]
[1644264629969,2.14682857,120.73,120.62,38.34762473]
[1644264630170,12.28982857,120.73,120.62,25.89252473]
[1644264630369,12.4348,120.7,120.61,1.19512473]
[1644264630568,39.33732747,120.69,120.62,44.41764977]
[1644264630769,39.33732747,120.69,120.62,0.024]
[1644264630968,39.33732747,120.69,120.62,6.0]
[1644264631569,39.33732747,120.69,120.61,1.19512473]
[1644264631771,39.33732747,120.69,120.62,45.82623118]
[1644264631974,12.4346,120.68,120.62,45.85023118]
[1644264632169,38.93774157,120.67,120.62,6.0]
[1644264632570,38.93774157,120.67,120.61,7.19512473]
[1644264632771,38.93774157,120.67,120.61,1.19512473]
[1644264632970,38.93774157,120.67,120.61,7.19512473]
[1644264633170,38.93774157,120.67,120.61,51.87563434]
[1644264633569,38.93774157,120.67,120.61,65.47985907]
[1644264636572,38.93774157,120.67,120.62,1.17112473]
[1644264636772,48.5386,120.72,120.63,46.60262473]
[1644264636972,48.5386,120.72,120.63,47.77374946]
[1644264637176,54.5386,120.72,120.63,53.77374946]
[1644264637372,4.143,120.75,120.63,53.77374946]
[1644264637574,23.6867,120.75,120.64,1.17112473]
[1644264637773,23.6867,120.75,120.65,37.37523719]
[1644264637774,42.58648178,120.74,120.65,37.37523719]
[1644264638173,42.58648178,120.74,120.65,43.37523719]
[1644264638973,60.72228611,120.72,120.65,43.37523719]
[1644264639977,12.4305,120.72,120.65,43.37523719]
[1644264641576,23.6867,120.75,120.65,55.80403719]
[1644264641779,41.4259,120.77,120.65,55.80403719]
[1644264641976,41.4259,120.77,120.66,11.93]
[1644264642177,41.4259,120.77,120.66,17.93]
[1644264642483,38.16518419,120.76,120.67,45.9048964]
[1644264642679,38.16518419,120.76,120.67,51.9048964]
[1644264643077,50.59178419,120.76,120.67,64.3317964]
[1644264643478,50.59178419,120.76,120.67,58.3317964]
[1644264644279,50.59178419,120.76,120.67,45.9048964]
[1644264644680,58.73861276,120.76,120.67,45.9048964]
[1644264645779,58.73861276,120.76,120.65,12.4282]
[1644264645980,58.73861276,120.76,120.65,6.0]
[1644264646181,18.03135,120.75,120.64,6.0]
[1644264646381,12.4334,120.72,120.62,7.17112473]
[1644264646579,18.4334,120.72,120.62,7.17112473]
[1644264646983,47.60018701,120.71,120.63,35.59859142]
[1644264647192,47.60018701,120.71,120.63,41.59859142]
[1644264647784,60.03188701,120.71,120.63,41.59859142]
[1644264648586,60.03188701,120.71,120.63,42.76971615]
[1644264649184,60.03188701,120.71,120.63,41.59859142]
[1644264649784,60.03188701,120.71,120.63,42.76971615]
[1644264650186,12.4317,120.71,120.63,55.20061615]
[1644264650387,24.6147,120.74,120.64,1.17112473]
[1644264650584,24.6147,120.74,120.65,13.10112473]
[1644264650789,24.6147,120.74,120.65,15.23571568]
[1644264650992,24.6147,120.74,120.66,1.17112473]
[1644264651192,62.14350617,120.77,120.67,49.17720394]
[1644264651393,12.4267,120.76,120.69,43.07154979]
[1644264651591,12.4267,120.76,120.69,49.07154979]
[1644264651793,0.04142568,120.78,120.69,49.07154979]
[1644264651997,0.04142568,120.79,120.7,11.93]
[1644264652194,0.04142568,120.81,120.71,41.3993]